{"text_format":"1","workbook":"xlsx","n_sheets":10,"sheets":["1总表","2购机补贴工作经费","3机插秧","4牌证管理","5平安农机","6服务能力建设","7、油菜","8秸秆还田","9、经济作物","10科技创新"],"not_rendered":{"charts":0,"images":0,"macros":0,"external_links":0,"defined_names":1,"comments":0,"pivot_tables":0},"unopened":[],"bounds":{"document_bytes":16777216,"sheet_cells":100000,"rows_first":2000,"rows_last":500,"rows_between":2000,"halvings":0,"cell_chars":16384,"cell_head_chars":4096},"cells_cut":0,"cells_raw":0,"read":"whole","date_system":"1900"}

{"sheet":"1总表","index":0,"n_rows":174,"n_cols":12,"rows_kept":174,"cut":false,"hidden":false,"merged":[[1,0,1,11],[3,0,4,0],[3,1,4,1],[3,2,4,2],[3,4,4,4],[3,10,4,10],[3,11,4,11],[3,3,4,3],[3,5,4,5],[3,6,4,6],[3,7,4,7],[3,8,4,8],[3,9,4,9],[2,9,2,11]]}
["附件1："]
["2017年部分省财政农机专项资金安排情况汇总表"]
[null,null,null,null,null,null,null,null,null,"单位：万元"]
["市州","县市区","农机购置补贴工作经费","机插秧经费","牌证管理经费","平安农机创建和装备建设","服务能力建设","油菜机械化推广","秸秆机械化还田推广","经济作物机械化示范","科技创新与教育培训","合计"]
[]
["全省合计",null,{"$f":"C7+C173","v":1100},300,220,360,450,280,80,60,200,3050]
["一、市州小计",null,{"$f":"C8+C16+C26+C35+C47+C60+C73+C89+C96+C107+C122+C137+C146+C163","v":1097},300,220,360,450,280,80,60,200,3047]
["长沙市","长沙市小计",{"$f":"C9+C13","v":40},19,12,20,20,10,10,10,20,161]
[" ","市本级及所辖区小计",{"$f":"C10+C11+C12","v":16},{"$f":"D10+D11+D12","v":10},12,10,10,0,0,10,10,78]
[null,"市本级",5,10,12,null,null,null,null,null,10,{"$f":"SUM(C10:K10)","v":37}]
[null,"长沙县",5,null,null,10,null,null,null,10,null,{"$f":"SUM(C11:K11)","v":25}]
[null,"望城区",6,null,null,null,10,null,null,null,null,16]
[null,"省直管县小计",{"$f":"C14+C15","v":24},{"$f":"D14+D15","v":9},0,10,10,10,10,0,10,83]
[null,"浏阳市",12,5,null,null,10,null,null,null,10,37]
[null,"宁乡县",12,4,null,10,null,10,10,null,null,46]
["株洲市","株洲市小计",{"$f":"C17+C20","v":48},{"$f":"D17+D20","v":19},14,20,20,20,0,0,10,151]
[null,"市本级及所辖区小计",{"$f":"C18+C19","v":8},{"$f":"D18+D19","v":9},14,0,0,0,0,0,10,41]
[null,"市本级",8,9,14,null,null,null,null,null,null,31]
[null,"天元区",null,null,null,null,null,null,null,null,10,10]
[null,"省直管县小计",{"$f":"SUM(C21:C25)","v":40},{"$f":"SUM(D21:D25)","v":10},0,20,20,20,0,0,0,110]
[null,"株洲县",4,null,null,null,null,10,null,null,null,14]
[null,"攸县",10,3,null,null,10,null,null,null,null,23]
[null,"醴陵市",15,4,null,null,10,null,null,null,null,29]
[null,"茶陵县",7,null,null,10,null,10,null,null,null,27]
[null,"炎陵县",4,3,null,10,null,null,null,null,null,17]
["湘潭市","湘潭市小计",{"$f":"C27+C31","v":110},23,20,0,30,10,10,15,20,238]
[null,"市本级及所辖区小计",{"$f":"C28+C29+C30","v":71},{"$f":"D28+D29+D30","v":10},20,0,10,0,10,0,10,131]
[null,"市本级",6,10,10,null,null,null,10,null,10,46]
[null,"雨湖区",5,null,10,null,10,null,null,null,null,25]
[null,"九华区",60,null,null,null,null,null,null,null,null,60]
[null,"省直管县小计",{"$f":"SUM(C32:C34)","v":39},{"$f":"SUM(D32:D34)","v":13},0,0,20,10,0,15,10,107]
[null,"湘潭县",10,null,null,null,null,null,null,15,10,35]
[null,"湘乡市",23,10,null,null,10,10,null,null,null,53]
[null,"韶山市",6,3,null,null,10,null,null,null,null,19]
["衡阳市","衡阳市小计",{"$f":"C36+C39","v":81},23,15,40,30,30,10,0,10,239]
[null,"市本级及所辖区小计",{"$f":"SUM(C37:C38)","v":13},10,15,0,0,10,0,0,0,48]
[null,"市本级",10,10,15,null,null,null,null,null,null,35]
[null,"南岳区",3,null,null,null,null,10,null,null,null,13]
[null,"省直管县小计",{"$f":"SUM(C40:C46)","v":68},{"$f":"SUM(D40:D46)","v":13},0,40,30,20,10,0,10,191]
[null,"衡南县",6,null,null,10,null,null,10,null,null,26]
[null,"衡阳县",10,5,null,null,10,null,null,null,10,35]
[null,"衡山县",5,3,null,10,null,null,null,null,null,18]
[null,"衡东县",14,5,null,10,null,null,null,null,null,29]
[null,"祁东县",7,null,null,null,10,10,null,null,null,27]
[null,"耒阳市",22,null,null,10,null,null,null,null,null,32]
[null,"常宁市",4,null,null,null,10,10,null,null,null,24]
["邵阳市","邵阳市小计",{"$f":"C48+C50","v":104},21,14,40,30,20,10,0,10,249]
[null,"市本级及所辖区小计",{"$f":"SUM(C49:C49)","v":6},9,14,0,0,0,0,0,0,29]
[null,"市本级",6,9,14,null,null,null,null,null,null,29]
[null,"省直管县小计",{"$f":"SUM(C51:C59)","v":98},{"$f":"SUM(D51:D59)","v":12},0,40,30,20,10,0,10,220]
[null,"新邵县",10,null,null,10,null,null,null,null,null,20]
[null,"隆回县",16,4,null,10,null,10,null,null,null,40]
[null,"武冈市",17,5,null,null,null,null,10,null,null,32]
[null,"洞口县",16,null,null,null,10,null,null,null,null,26]
[null,"新宁县",12,null,null,10,null,null,null,null,null,22]
[null,"邵阳县",7,null,null,null,10,null,null,null,null,17]
[null,"城步县",5,null,null,10,null,null,null,null,null,15]
[null,"邵东县",8,3,null,null,10,null,null,null,10,31]
[null,"绥宁县",7,null,null,null,null,10,null,null,null,17]
["岳阳市","岳阳市小计",{"$f":"C61+C66","v":89},34,16,30,30,30,0,0,20,249]
[null,"市本级及所辖区小计",{"$f":"SUM(C62:C65)","v":27},23,16,20,0,10,0,0,10,106]
[null,"市本级",10,10,16,null,null,null,null,null,10,46]
[null,"君山区",5,4,null,null,null,10,null,null,null,19]
[null,"云溪区",3,null,null,10,null,null,null,null,null,13]
[null,"屈原区",9,9,null,10,null,null,null,null,null,28]
[null,"省直管县小计",{"$f":"SUM(C67:C72)","v":62},{"$f":"SUM(D67:D72)","v":11},0,10,30,20,0,0,10,{"$f":"SUM(C66:K66)","v":143}]
[null,"汨罗市",18,null,null,null,10,null,null,null,null,28]
[null,"平江县",8,null,null,10,10,null,null,null,null,28]
[null,"华容县",10,5,null,null,null,null,null,null,10,25]
[null,"湘阴县",10,6,null,null,null,10,null,null,null,26]
[null,"临湘市",5,null,null,null,10,null,null,null,null,15]
[null,"岳阳县",11,null,null,null,null,10,null,null,null,21]
["常德市","常德市小计",{"$f":"C74+C81","v":122},24,28,40,40,30,0,0,20,304]
[null,"市本级及所辖区小计",{"$f":"SUM(C75:C80)","v":41},13,18,10,10,10,0,0,10,112]
[null,"市本级",14,10,18,null,null,null,null,null,10,52]
[null,"武陵区",3,null,null,null,null,null,null,null,null,3]
[null,"鼎城区",14,null,null,10,10,null,null,null,null,34]
[null,"西湖区",7,null,null,null,null,10,null,null,null,17]
[null,"西洞庭管理区",3,null,null,null,null,null,null,null,null,3]
[null,"桃花源管理区",null,3,null,null,null,null,null,null,null,3]
[null,"省直管县小计",{"$f":"SUM(C82:C88)","v":81},11,10,30,30,20,0,0,10,192]
[null,"津市市",8,null,null,10,null,null,null,null,null,18]
[null,"安乡县",10,null,null,10,10,null,null,null,null,30]
[null,"汉寿县",22,5,null,null,null,10,null,null,null,37]
[null,"澧县",13,3,null,null,null,10,null,null,null,26]
[null,"临澧县",5,null,null,10,null,null,null,null,null,15]
[null,"桃源县",12,3,null,null,10,null,null,null,10,35]
[null,"石门县",11,null,10,null,10,null,null,null,null,31]
["张家界市","张家界市小计",{"$f":"C90+C93","v":29},12,10,20,30,10,10,0,10,131]
[null,"市本级及所辖区小计",{"$f":"SUM(C91:C92)","v":11},9,10,20,10,0,0,0,10,70]
[null,"市本级",6,9,10,10,null,null,null,null,null,35]
[null,"永定区",5,null,null,10,10,null,null,null,10,35]
[null,"省直管县小计",{"$f":"SUM(C94:C95)","v":18},{"$f":"SUM(D94:D95)","v":3},0,0,20,10,10,0,0,61]
[null,"桑植县",6,null,null,null,10,10,null,null,null,26]
[null,"慈利县",12,3,null,null,10,null,10,null,null,35]
["益阳市","益阳市小计",{"$f":"C97+C102","v":60},{"$f":"D97+D102","v":16},16,10,30,20,10,0,10,172]
[null,"市本级及所辖区小计",{"$f":"SUM(C98:C101)","v":26},{"$f":"SUM(D98:D101)","v":13},16,0,10,0,10,0,10,85]
[null,"市本级",6,9,16,null,null,null,null,null,null,31]
[null,"资阳区",9,null,null,null,null,null,null,null,10,19]
[null,"赫山区",7,4,null,null,10,null,null,null,null,21]
[null,"大通湖区",4,null,null,null,null,null,10,null,null,14]
[null,"省直管县小计",{"$f":"SUM(C103:C106)","v":34},{"$f":"SUM(D103:D106)","v":3},0,10,20,20,0,0,0,87]
[null,"沅江市",12,null,null,null,10,null,null,null,null,22]
[null,"南县",6,null,null,null,10,10,null,null,null,26]
[null,"桃江县",10,3,null,null,null,10,null,null,null,23]
[null,"安化县",6,null,null,10,null,null,null,null,null,16]
["永州市","永州市小计",{"$f":"C108+C112","v":68},18,16,40,30,20,0,0,10,202]
[null,"市本级及所辖区小计",{"$f":"SUM(C109:C111)","v":19},18,16,10,0,10,0,0,0,73]
[null,"市本级",8,10,16,null,null,null,null,null,null,34]
[null,"零陵区",6,4,null,10,null,null,null,null,null,20]
[null,"冷水滩区",5,4,null,null,null,10,null,null,null,19]
[null,"省直管县小计",{"$f":"SUM(C113:C121)","v":49},{"$f":"SUM(D113:D121)","v":0},0,30,30,10,0,0,10,129]
[null,"东安县",6,null,null,null,null,null,null,null,10,16]
[null,"道县",10,null,null,10,null,null,null,null,null,20]
[null,"江永县",7,null,null,null,null,null,null,null,null,7]
[null,"宁远县",7,null,null,10,null,null,null,null,null,17]
[null,"江华县",6,null,null,null,null,10,null,null,null,16]
[null,"新田县",4,null,null,10,null,null,null,null,null,14]
[null,"双牌县",3,null,null,null,10,null,null,null,null,13]
[null,"祁阳县",3,null,null,null,10,null,null,null,null,13]
[null,"蓝山县",3,null,null,null,10,null,null,null,null,13]
["郴州市","郴州市小计",{"$f":"C123+C127","v":87},{"$f":"D123+D127","v":13},14,30,40,20,0,15,10,229]
[null,"市本级及所辖区小计",{"$f":"SUM(C124:C126)","v":31},{"$f":"SUM(D124:D126)","v":9},14,0,10,0,0,0,0,64]
[null,"市本级",8,9,14,null,null,null,null,null,null,{"$f":"SUM(C124:K124)","v":31}]
[null,"苏仙区",5,null,null,null,10,null,null,null,null,15]
[null,"北湖区",18,null,null,null,null,null,null,null,null,18]
[null,"省直管县小计",{"$f":"SUM(C128:C136)","v":56},{"$f":"SUM(D128:D136)","v":4},0,30,30,20,0,15,10,165]
[null,"桂阳县",10,4,null,null,null,10,null,null,null,24]
[null,"嘉禾县",9,null,null,null,null,null,null,null,null,9]
[null,"临武县",3,null,null,10,null,null,null,15,null,28]
[null,"桂东县",4,null,null,null,10,null,null,null,null,14]
[null,"安仁县",13,null,null,null,null,null,null,null,10,23]
[null,"资兴市",4,null,null,null,null,null,null,null,null,4]
[null,"宜章县",3,null,null,null,20,null,null,null,null,23]
[null,"汝城县",4,null,null,20,null,null,null,null,null,24]
[null,"永兴县",6,null,null,null,null,10,null,null,null,16]
["娄底市","娄底市小计",{"$f":"C138+C141","v":78},{"$f":"D138+D141","v":19},10,20,30,20,20,0,20,217]
[null,"市本级及所辖区小计",{"$f":"SUM(C139:C140)","v":11},{"$f":"SUM(D139:D140)","v":13},10,0,0,10,0,0,20,{"$f":"SUM(C138:K138)","v":64}]
[null,"市本级",6,10,10,null,null,null,null,null,10,36]
[null,"娄星区",5,3,null,null,null,10,null,null,10,28]
[null,"省直管县小计",{"$f":"SUM(C142:C145)","v":67},{"$f":"SUM(D142:D145)","v":6},0,20,30,10,20,0,0,153]
[null,"涟源市",8,null,null,null,10,null,20,null,null,38]
[null,"双峰县",26,3,null,10,10,null,null,null,null,49]
[null,"新化县",22,3,null,null,10,10,null,null,null,45]
[null,"冷水江市",11,null,null,10,null,null,null,null,null,21]
["怀化市","怀化市小计",{"$f":"C147+C150","v":97},{"$f":"D147+D150","v":18},19,30,30,20,0,10,10,234]
[null,"市本级及所辖区小计",{"$f":"C148+C149","v":14},{"$f":"D148+D149","v":9},14,0,10,0,0,0,0,{"$f":"SUM(C147:K147)","v":47}]
[null,"市本级",10,9,14,null,null,null,null,null,null,33]
[null,"鹤城区",4,null,null,null,10,null,null,null,null,14]
[null,"省直管县小计",{"$f":"SUM(C151:C162)","v":83},{"$f":"SUM(D151:D162)","v":9},5,30,20,20,0,10,10,187]
[null,"沅陵县",3,null,null,null,null,10,null,null,null,13]
[null,"辰溪县",8,3,5,null,10,null,null,null,null,26]
[null,"溆浦县",9,3,null,null,10,null,null,null,null,22]
[null,"会同县",7,3,null,null,null,null,null,null,null,10]
[null,"麻阳县",5,null,null,null,null,null,null,null,10,15]
[null,"芷江县",10,null,null,null,null,null,null,10,null,20]
[null,"新晃县",8,null,null,10,null,null,null,null,null,18]
[null,"洪江市",9,null,null,null,null,10,null,null,null,19]
[null,"中方县",5,null,null,10,null,null,null,null,null,15]
[null,"洪江区",3,null,null,null,null,null,null,null,null,3]
[null,"通道县",6,null,null,null,null,null,null,null,null,6]
[null,"靖州县",10,null,null,10,null,null,null,null,null,20]
["湘西土家族苗族自治州","湘西土家族苗族自治州小计",{"$f":"SUM(C164:C172)","v":84},{"$f":"SUM(D164:D172)","v":41},16,20,60,20,0,10,20,271]
[null,"州本级",10,12,11,null,null,null,null,null,10,{"$f":"SUM(C164:K164)","v":43}]
[null,"吉首市",5,null,null,null,10,null,null,null,null,15]
[null,"泸溪县",5,null,null,null,null,null,null,10,null,15]
[null,"凤凰县",8,3,null,10,10,null,null,null,null,31]
[null,"花垣县",6,3,5,10,null,null,null,null,null,24]
[null,"保靖县",6,3,null,null,10,null,null,null,null,19]
[null,"古丈县",8,null,null,null,10,null,null,null,null,18]
[null,"永顺县",27,16,null,null,20,10,null,null,null,73]
[null,"龙山县",9,4,null,null,null,10,null,null,10,33]
["二、省级小计",null,{"$f":"C174","v":3},null,null,null,null,null,null,null,null,{"$f":"SUM(C173:K173)","v":3}]
["省农业委员会","贺家山农场",3,null,null,null,null,null,null,null,null,3]

{"sheet":"2购机补贴工作经费","index":1,"n_rows":171,"n_cols":7,"rows_kept":171,"cut":false,"hidden":false,"merged":[[1,0,1,6],[2,5,2,6]]}
["附件2："]
["2017年农机购置补贴工作经费分配表   "]
[null,null,null,null,null,"单位：万元"]
["市州","县市区","项目实施单位","财政支持环节    与内容","支出功能    分类科目","支出经济   分类科目","金额"]
["全省合计",null,null,null,null,null,1100]
["一、市州小计",null,null,null,null,null,1097]
["长沙市","长沙市小计",null,null,null,null,40]
[null,"市本级及所辖区小计",null,null,null,null,16]
[null,"市本级","长沙市农业委员会","开展政策宣传、公示、建立信息档案等","农业生产支持补贴","商品和服务支出",5]
[null,"长沙县","长沙县农业和林业局","开展政策宣传、公示、建立信息档案等","农业生产支持补贴","商品和服务支出",5]
[null,"望城区","望城区农机局","开展政策宣传、公示、建立信息档案等","农业生产支持补贴","商品和服务支出",6]
[null,"省直管县小计",null,null,null,null,24]
[null,"浏阳市","浏阳市农业局","开展政策宣传、公示、建立信息档案等","农业生产支持补贴","商品和服务支出",12]
[null,"宁乡县","宁乡县农机局","开展政策宣传、公示、建立信息档案等","农业生产支持补贴","商品和服务支出",12]
["株洲市","株洲市小计",null,null,null,null,48]
[null,"市本级及所辖区小计",null,null,null,null,8]
[null,"市本级","株洲市农机局","开展政策宣传、公示、建立信息档案等","农业生产支持补贴","商品和服务支出",8]
[null,"省直管县小计",null,null,null,null,40]
[null,"株洲县","株洲县农机局","开展政策宣传、公示、建立信息档案等","农业生产支持补贴","商品和服务支出",4]
[null,"攸县","攸县农机局","开展政策宣传、公示、建立信息档案等","农业生产支持补贴","商品和服务支出",10]
[null,"醴陵市","醴陵市农机局","开展政策宣传、公示、建立信息档案等","农业生产支持补贴","商品和服务支出",15]
[null,"茶陵县","茶陵县农机局","开展政策宣传、公示、建立信息档案等","农业生产支持补贴","商品和服务支出",7]
[null,"炎陵县","炎陵县农机局","开展政策宣传、公示、建立信息档案等","农业生产支持补贴","商品和服务支出",4]
["湘潭市","湘潭市小计",null,null,null,null,110]
[null,"市本级及所辖区小计",null,null,null,null,71]
[null,"市本级","湘潭市农机局","开展政策宣传、公示、建立信息档案等","农业生产支持补贴","商品和服务支出",6]
[null,"雨湖区","雨湖区农机局","开展政策宣传、公示、建立信息档案等","农业生产支持补贴","商品和服务支出",5]
[null,"九华区","九华区补贴办","开展政策宣传、公示、建立信息档案等","农业生产支持补贴","商品和服务支出",60]
[null,"省直管县小计",null,null,null,null,39]
[null,"湘潭县","湘潭县农机局","开展政策宣传、公示、建立信息档案等","农业生产支持补贴","商品和服务支出",10]
[null,"湘乡市","湘乡市农机局","开展政策宣传、公示、建立信息档案等","农业生产支持补贴","商品和服务支出",23]
[null,"韶山市","韶山市农机局","开展政策宣传、公示、建立信息档案等","农业生产支持补贴","商品和服务支出",6]
["衡阳市","衡阳市小计",null,null,null,null,81]
[null,"市本级及所辖区小计",null,null,null,null,13]
[null,"市本级","衡阳市农机局","开展政策宣传、公示、建立信息档案等","农业生产支持补贴","商品和服务支出",10]
[null,"南岳区","南岳区农业局","开展政策宣传、公示、建立信息档案等","农业生产支持补贴","商品和服务支出",3]
[null,"省直管县小计",null,null,null,null,68]
[null,"衡南县","衡南县农机局","开展政策宣传、公示、建立信息档案等","农业生产支持补贴","商品和服务支出",6]
[null,"衡阳县","衡阳县农机局","开展政策宣传、公示、建立信息档案等","农业生产支持补贴","商品和服务支出",10]
[null,"衡山县","衡山县农机局","开展政策宣传、公示、建立信息档案等","农业生产支持补贴","商品和服务支出",5]
[null,"衡东县","衡东县农机局","开展政策宣传、公示、建立信息档案等","农业生产支持补贴","商品和服务支出",14]
[null,"祁东县","祁东县农机局","开展政策宣传、公示、建立信息档案等","农业生产支持补贴","商品和服务支出",7]
[null,"耒阳市","耒阳市农机局","开展政策宣传、公示、建立信息档案等","农业生产支持补贴","商品和服务支出",22]
[null,"常宁市","常宁市农机局","开展政策宣传、公示、建立信息档案等","农业生产支持补贴","商品和服务支出",4]
["邵阳市","邵阳市小计",null,null,null,null,104]
[null,"市本级及所辖区小计",null,null,null,null,6]
[null,"市本级","邵阳市农委","开展政策宣传、公示、建立信息档案等","农业生产支持补贴","商品和服务支出",6]
[null,"省直管县小计",null,null,null,null,98]
[null,"新邵县","新邵县农机局","开展政策宣传、公示、建立信息档案等","农业生产支持补贴","商品和服务支出",10]
[null,"隆回县","隆回县农机局","开展政策宣传、公示、建立信息档案等","农业生产支持补贴","商品和服务支出",16]
[null,"武冈市","武冈市农机局","开展政策宣传、公示、建立信息档案等","农业生产支持补贴","商品和服务支出",17]
[null,"洞口县","洞口县农机局","开展政策宣传、公示、建立信息档案等","农业生产支持补贴","商品和服务支出",16]
[null,"新宁县","新宁县农机局","开展政策宣传、公示、建立信息档案等","农业生产支持补贴","商品和服务支出",12]
[null,"邵阳县","邵阳县农业局","开展政策宣传、公示、建立信息档案等","农业生产支持补贴","商品和服务支出",7]
[null,"城步县","城步县农机局","开展政策宣传、公示、建立信息档案等","农业生产支持补贴","商品和服务支出",5]
[null,"邵东县","邵东县农机局","开展政策宣传、公示、建立信息档案等","农业生产支持补贴","商品和服务支出",8]
[null,"绥宁县","绥宁县农机局","开展政策宣传、公示、建立信息档案等","农业生产支持补贴","商品和服务支出",7]
["岳阳市","岳阳市小计",null,null,null,null,89]
[null,"市本级及所辖区小计",null,null,null,null,27]
[null,"市本级","岳阳市农机局","开展政策宣传、公示、建立信息档案等","农业生产支持补贴","商品和服务支出",10]
[null,"君山区","君山区农业局","开展政策宣传、公示、建立信息档案等","农业生产支持补贴","商品和服务支出",5]
[null,"云溪区","云溪区农业局","开展政策宣传、公示、建立信息档案等","农业生产支持补贴","商品和服务支出",3]
[null,"屈原区","屈原管理区农机局","开展政策宣传、公示、建立信息档案等","农业生产支持补贴","商品和服务支出",9]
[null,"省直管县小计",null,null,null,null,62]
[null,"汨罗市","汨罗市农机局","开展政策宣传、公示、建立信息档案等","农业生产支持补贴","商品和服务支出",18]
[null,"平江县","平江县农机局","开展政策宣传、公示、建立信息档案等","农业生产支持补贴","商品和服务支出",8]
[null,"华容县","华容县农机局","开展政策宣传、公示、建立信息档案等","农业生产支持补贴","商品和服务支出",10]
[null,"湘阴县","湘阴县农机局","开展政策宣传、公示、建立信息档案等","农业生产支持补贴","商品和服务支出",10]
[null,"临湘市","临湘市农机局","开展政策宣传、公示、建立信息档案等","农业生产支持补贴","商品和服务支出",5]
[null,"岳阳县","岳阳县农机局","开展政策宣传、公示、建立信息档案等","农业生产支持补贴","商品和服务支出",11]
["常德市","常德市小计",null,null,null,null,122]
[null,"市本级及所辖区小计",null,null,null,null,41]
[null,"市本级","常德市农机局","开展政策宣传、公示、建立信息档案等","农业生产支持补贴","商品和服务支出",14]
[null,"武陵区","武陵区农机局","开展政策宣传、公示、建立信息档案等","农业生产支持补贴","商品和服务支出",3]
[null,"鼎城区","鼎城区农机局","开展政策宣传、公示、建立信息档案等","农业生产支持补贴","商品和服务支出",14]
[null,"西湖区","西湖区农机局","开展政策宣传、公示、建立信息档案等","农业生产支持补贴","商品和服务支出",7]
[null,"西洞庭管理区","西洞庭管理区农业局","开展政策宣传、公示、建立信息档案等","农业生产支持补贴","商品和服务支出",3]
[null,"省直管县小计",null,null,null,null,81]
[null,"津市市","津市市农机局","开展政策宣传、公示、建立信息档案等","农业生产支持补贴","商品和服务支出",8]
[null,"安乡县","安乡县农机局","开展政策宣传、公示、建立信息档案等","农业生产支持补贴","商品和服务支出",10]
[null,"汉寿县","汉寿县农机局","开展政策宣传、公示、建立信息档案等","农业生产支持补贴","商品和服务支出",22]
[null,"澧县","澧县农机局","开展政策宣传、公示、建立信息档案等","农业生产支持补贴","商品和服务支出",13]
[null,"临澧县","临澧县农机局","开展政策宣传、公示、建立信息档案等","农业生产支持补贴","商品和服务支出",5]
[null,"桃源县","桃源县农机局","开展政策宣传、公示、建立信息档案等","农业生产支持补贴","商品和服务支出",12]
[null,"石门县","石门县农机局","开展政策宣传、公示、建立信息档案等","农业生产支持补贴","商品和服务支出",11]
["张家界市","张家界市小计",null,null,null,null,29]
[null,"市本级及所辖区小计",null,null,null,null,11]
[null,"市本级","张家界市农机局","开展政策宣传、公示、建立信息档案等","农业生产支持补贴","商品和服务支出",6]
[null,"永定区","永定区农机局","开展政策宣传、公示、建立信息档案等","农业生产支持补贴","商品和服务支出",5]
[null,"省直管县小计",null,null,null,null,18]
[null,"桑植县","桑植县农机局","开展政策宣传、公示、建立信息档案等","农业生产支持补贴","商品和服务支出",6]
[null,"慈利县","慈利县农机局","开展政策宣传、公示、建立信息档案等","农业生产支持补贴","商品和服务支出",12]
["益阳市","益阳市小计",null,null,null,null,60]
[null,"市本级及所辖区小计",null,null,null,null,26]
[null,"市本级","益阳市农机局","开展政策宣传、公示、建立信息档案等","农业生产支持补贴","商品和服务支出",6]
[null,"资阳区","资阳区农机局","开展政策宣传、公示、建立信息档案等","农业生产支持补贴","商品和服务支出",9]
[null,"赫山区","赫山区农机局","开展政策宣传、公示、建立信息档案等","农业生产支持补贴","商品和服务支出",7]
[null,"大通湖区","大通湖区农林水务局","开展政策宣传、公示、建立信息档案等","农业生产支持补贴","商品和服务支出",4]
[null,"省直管县小计",null,null,null,null,34]
[null,"沅江市","沅江市农机局","开展政策宣传、公示、建立信息档案等","农业生产支持补贴","商品和服务支出",12]
[null,"南县","南县农机局","开展政策宣传、公示、建立信息档案等","农业生产支持补贴","商品和服务支出",6]
[null,"桃江县","桃江县农机局","开展政策宣传、公示、建立信息档案等","农业生产支持补贴","商品和服务支出",10]
[null,"安化县","安化县农机局","开展政策宣传、公示、建立信息档案等","农业生产支持补贴","商品和服务支出",6]
["永州市","永州市小计",null,null,null,null,68]
[null,"市本级及所辖区小计",null,null,null,null,19]
[null,"市本级","永州市农机局","开展政策宣传、公示、建立信息档案等","农业生产支持补贴","商品和服务支出",8]
[null,"零陵区","零陵区农机局","开展政策宣传、公示、建立信息档案等","农业生产支持补贴","商品和服务支出",6]
[null,"冷水滩区","冷水滩区农机局","开展政策宣传、公示、建立信息档案等","农业生产支持补贴","商品和服务支出",5]
[null,"省直管县小计",null,null,null,null,49]
[null,"东安县","东安县农机局","开展政策宣传、公示、建立信息档案等","农业生产支持补贴","商品和服务支出",6]
[null,"道县","道县农机局","开展政策宣传、公示、建立信息档案等","农业生产支持补贴","商品和服务支出",10]
[null,"江永县","江永县农机局","开展政策宣传、公示、建立信息档案等","农业生产支持补贴","商品和服务支出",7]
[null,"宁远县","宁远县农机局","开展政策宣传、公示、建立信息档案等","农业生产支持补贴","商品和服务支出",7]
[null,"江华县","江华县农机局","开展政策宣传、公示、建立信息档案等","农业生产支持补贴","商品和服务支出",6]
[null,"新田县","新田县农机局","开展政策宣传、公示、建立信息档案等","农业生产支持补贴","商品和服务支出",4]
[null,"双牌县","双牌县农机局","开展政策宣传、公示、建立信息档案等","农业生产支持补贴","商品和服务支出",3]
[null,"祁阳县","祁阳县农机局","开展政策宣传、公示、建立信息档案等","农业生产支持补贴","商品和服务支出",3]
[null,"蓝山县","蓝山县农机局","开展政策宣传、公示、建立信息档案等","农业生产支持补贴","商品和服务支出",3]
["郴州市","郴州市小计",null,null,null,null,87]
[null,"市本级及所辖区小计",null,null,null,null,31]
[null,"市本级","郴州市农机局","开展政策宣传、公示、建立信息档案等","农业生产支持补贴","商品和服务支出",8]
[null,"苏仙区","苏仙区农机局","开展政策宣传、公示、建立信息档案等","农业生产支持补贴","商品和服务支出",5]
[null,"北湖区","北湖区农机局","开展政策宣传、公示、建立信息档案等","农业生产支持补贴","商品和服务支出",18]
[null,"省直管县小计",null,null,null,null,56]
[null,"桂阳县","桂阳县农机局","开展政策宣传、公示、建立信息档案等","农业生产支持补贴","商品和服务支出",10]
[null,"嘉禾县","嘉禾县农机局","开展政策宣传、公示、建立信息档案等","农业生产支持补贴","商品和服务支出",9]
[null,"临武县","临武县农机局","开展政策宣传、公示、建立信息档案等","农业生产支持补贴","商品和服务支出",3]
[null,"桂东县","桂东县农机局","开展政策宣传、公示、建立信息档案等","农业生产支持补贴","商品和服务支出",4]
[null,"安仁县","安仁县农机局","开展政策宣传、公示、建立信息档案等","农业生产支持补贴","商品和服务支出",13]
[null,"资兴市","资兴市农机局","开展政策宣传、公示、建立信息档案等","农业生产支持补贴","商品和服务支出",4]
[null,"宜章县","宜章县农机局","开展政策宣传、公示、建立信息档案等","农业生产支持补贴","商品和服务支出",3]
[null,"汝城县","汝城县农机局","开展政策宣传、公示、建立信息档案等","农业生产支持补贴","商品和服务支出",4]
[null,"永兴县","永兴县农机局","开展政策宣传、公示、建立信息档案等","农业生产支持补贴","商品和服务支出",6]
["娄底市","娄底市小计",null,null,null,null,78]
[null,"市本级及所辖区小计",null,null,null,null,11]
[null,"市本级","娄底市农机局","开展政策宣传、公示、建立信息档案等","农业生产支持补贴","商品和服务支出",6]
[null,"娄星区","娄星区农机局","开展政策宣传、公示、建立信息档案等","农业生产支持补贴","商品和服务支出",5]
[null,"省直管县小计",null,null,null,null,67]
[null,"涟源市","涟源市农机局","开展政策宣传、公示、建立信息档案等","农业生产支持补贴","商品和服务支出",8]
[null,"双峰县","双峰县农机局","开展政策宣传、公示、建立信息档案等","农业生产支持补贴","商品和服务支出",26]
[null,"新化县","新化县农机局","开展政策宣传、公示、建立信息档案等","农业生产支持补贴","商品和服务支出",22]
[null,"冷水江市","冷水江市农机局","开展政策宣传、公示、建立信息档案等","农业生产支持补贴","商品和服务支出",11]
["怀化市","怀化市小计",null,null,null,null,97]
[null,"市本级及所辖区小计",null,null,null,null,14]
[null,"市本级","怀化市农机局","开展政策宣传、公示、建立信息档案等","农业生产支持补贴","商品和服务支出",10]
[null,"鹤城区","鹤城区农机局","开展政策宣传、公示、建立信息档案等","农业生产支持补贴","商品和服务支出",4]
[null,"省直管县小计",null,null,null,null,83]
[null,"沅陵县","沅陵县农机局","开展政策宣传、公示、建立信息档案等","农业生产支持补贴","商品和服务支出",3]
[null,"辰溪县","辰溪县农机局","开展政策宣传、公示、建立信息档案等","农业生产支持补贴","商品和服务支出",8]
[null,"溆浦县","溆浦县农机局","开展政策宣传、公示、建立信息档案等","农业生产支持补贴","商品和服务支出",9]
[null,"会同县","会同县农机局","开展政策宣传、公示、建立信息档案等","农业生产支持补贴","商品和服务支出",7]
[null,"麻阳县","麻阳县农机局","开展政策宣传、公示、建立信息档案等","农业生产支持补贴","商品和服务支出",5]
[null,"芷江县","芷江县农机局","开展政策宣传、公示、建立信息档案等","农业生产支持补贴","商品和服务支出",10]
[null,"新晃县","新晃县农机局","开展政策宣传、公示、建立信息档案等","农业生产支持补贴","商品和服务支出",8]
[null,"洪江市","洪江市农机局","开展政策宣传、公示、建立信息档案等","农业生产支持补贴","商品和服务支出",9]
[null,"中方县","中方县农机局","开展政策宣传、公示、建立信息档案等","农业生产支持补贴","商品和服务支出",5]
[null,"洪江区","洪江区农机局","开展政策宣传、公示、建立信息档案等","农业生产支持补贴","商品和服务支出",3]
[null,"通道县","通道县农机局","开展政策宣传、公示、建立信息档案等","农业生产支持补贴","商品和服务支出",6]
[null,"靖州县","靖州县农机局","开展政策宣传、公示、建立信息档案等","农业生产支持补贴","商品和服务支出",10]
["湘西土家族苗族自治州","湘西土家族苗族自治州小计",null,null,null,null,84]
[null,"州本级","湘西州农机局","开展政策宣传、公示、建立信息档案等","农业生产支持补贴","商品和服务支出",10]
[null,"吉首市","吉首市农机局","开展政策宣传、公示、建立信息档案等","农业生产支持补贴","商品和服务支出",5]
[null,"泸溪县","泸溪县农机局","开展政策宣传、公示、建立信息档案等","农业生产支持补贴","商品和服务支出",5]
[null,"凤凰县","凤凰县农机局","开展政策宣传、公示、建立信息档案等","农业生产支持补贴","商品和服务支出",8]
[null,"花垣县","花垣县农机局","开展政策宣传、公示、建立信息档案等","农业生产支持补贴","商品和服务支出",6]
[null,"保靖县","保靖县农机局","开展政策宣传、公示、建立信息档案等","农业生产支持补贴","商品和服务支出",6]
[null,"古丈县","古丈县农机局","开展政策宣传、公示、建立信息档案等","农业生产支持补贴","商品和服务支出",8]
[null,"永顺县","永顺县农机局","开展政策宣传、公示、建立信息档案等","农业生产支持补贴","商品和服务支出",27]
[null,"龙山县","龙山县农机局","开展政策宣传、公示、建立信息档案等","农业生产支持补贴","商品和服务支出",9]
["二、省级小计",null,null,null,null,null,3]
["省农业委员会","贺家山农场","贺家山原种场农机所","开展政策宣传、公示、建立信息档案等","农业生产支持补贴","商品和服务支出",3]

{"sheet":"3机插秧","index":2,"n_rows":97,"n_cols":7,"rows_kept":97,"cut":false,"hidden":false,"merged":[[1,0,1,6],[2,5,2,6]]}
["附件3："]
["2017年水稻机插秧技术推广专项资金分配表"]
[null,null,null,null,null,"单位：万元"]
["市州","县市区","项目实施 单位","财政支持环节  与内容","支出功能分类  科目","支出经济                分类科目","金额"]
["全省合计",null,null,null,null,null,300]
["市州小计",null,null,null,null,null,300]
["长沙市","长沙市小计",null,null,null,null,19]
[null,"市本级及所辖区小计",null,null,null,null,10]
[null,"市本级","长沙市农委","水稻机插秧技术推广","科技转化与推广服务","按项目管理的商品和服务支出（发展）",10]
[null,"省直管县小计",null,null,null,null,9]
[null,"浏阳市","浏阳市农业局","水稻机插秧技术推广","科技转化与推广服务","按项目管理的商品和服务支出（发展）",5]
[null,"宁乡县","宁乡县农机局","水稻机插秧技术推广","科技转化与推广服务","按项目管理的商品和服务支出（发展）",4]
["株洲市","株洲市小计",null,null,null,null,19]
[null,"市本级及所辖区小计",null,null,null,null,9]
[null,"市本级","株洲市农机局","水稻机插秧技术推广","科技转化与推广服务","按项目管理的商品和服务支出（发展）",9]
[null,"省直管县小计",null,null,null,null,10]
[null,"攸县","攸县农机局","水稻机插秧技术推广","科技转化与推广服务","按项目管理的商品和服务支出（发展）",3]
[null,"醴陵市","醴陵市农机局","水稻机插秧技术推广","科技转化与推广服务","按项目管理的商品和服务支出（发展）",4]
[null,"炎陵县","炎陵县农机局","水稻机插秧技术推广","科技转化与推广服务","按项目管理的商品和服务支出（发展）",3]
["湘潭市","湘潭市小计",null,null,null,null,23]
[null,"市本级及所辖区小计",null,null,null,null,10]
[null,"市本级","湘潭市农机局","水稻机插秧技术推广","科技转化与推广服务","按项目管理的商品和服务支出（发展）",10]
[null,"省直管县小计",null,null,null,null,13]
[null,"湘乡市","湘乡市农机局","水稻机插秧技术推广","科技转化与推广服务","按项目管理的商品和服务支出（发展）",10]
[null,"韶山市","韶山市农机局","水稻机插秧技术推广","科技转化与推广服务","按项目管理的商品和服务支出（发展）",3]
["衡阳市","衡阳市小计",null,null,null,null,23]
[null,"市本级及所辖区小计",null,null,null,null,10]
[null,"市本级","衡阳市农机局","水稻机插秧技术推广","科技转化与推广服务","按项目管理的商品和服务支出（发展）",10]
[null,"省直管县小计",null,null,null,null,13]
[null,"衡阳县","衡阳县农机局","水稻机插秧技术推广","科技转化与推广服务","按项目管理的商品和服务支出（发展）",5]
[null,"衡东县","衡东县农机局","水稻机插秧技术推广","科技转化与推广服务","按项目管理的商品和服务支出（发展）",5]
[null,"衡山县","衡山县农机局","水稻机插秧技术推广","科技转化与推广服务","按项目管理的商品和服务支出（发展）",3]
["邵阳市","邵阳市小计",null,null,null,null,21]
[null,"市本级及所辖区小计",null,null,null,null,9]
[null,"市本级","邵阳市农委","水稻机插秧技术推广","科技转化与推广服务","按项目管理的商品和服务支出（发展）",9]
[null,"省直管县小计",null,null,null,null,12]
[null,"隆回县","隆回县农机局","水稻机插秧技术推广","科技转化与推广服务","按项目管理的商品和服务支出（发展）",4]
[null,"武冈市","武冈市农机局","水稻机插秧技术推广","科技转化与推广服务","按项目管理的商品和服务支出（发展）",5]
[null,"邵东县","邵东县农机局","水稻机插秧技术推广","科技转化与推广服务","按项目管理的商品和服务支出（发展）",3]
["岳阳市","岳阳市小计",null,null,null,null,34]
[null,"市本级及所辖区小计",null,null,null,null,23]
[null,"市本级","岳阳市农机局","水稻机插秧技术推广","科技转化与推广服务","按项目管理的商品和服务支出（发展）",10]
[null,"君山区","君山区农机局","水稻机插秧技术推广","科技转化与推广服务","按项目管理的商品和服务支出（发展）",4]
[null,"屈原区","屈原区农机局","水稻机插秧技术推广","科技转化与推广服务","按项目管理的商品和服务支出（发展）",9]
[null,"省直管县小计",null,null,null,null,11]
[null,"华容县","华容县农机局","水稻机插秧技术推广","科技转化与推广服务","按项目管理的商品和服务支出（发展）",5]
[null,"湘阴县","湘阴县农机局","水稻机插秧技术推广","科技转化与推广服务","按项目管理的商品和服务支出（发展）",6]
["常德市","常德市小计",null,null,null,null,24]
[null,"市本级及所辖区小计",null,null,null,null,13]
[null,"市本级","常德市农机局","水稻机插秧技术推广","科技转化与推广服务","按项目管理的商品和服务支出（发展）",10]
[null,"桃花源管理区","桃花源管理区农机局","水稻机插秧技术推广","科技转化与推广服务","按项目管理的商品和服务支出（发展）",3]
[null,"省直管县小计",null,null,null,null,11]
[null,"汉寿县","汉寿县农机局","水稻机插秧技术推广","科技转化与推广服务","按项目管理的商品和服务支出（发展）",5]
[null,"澧县","澧县农机局","水稻机插秧技术推广","科技转化与推广服务","按项目管理的商品和服务支出（发展）",3]
[null,"桃源县","桃源县农机局","水稻机插秧技术推广","科技转化与推广服务","按项目管理的商品和服务支出（发展）",3]
["张家界市","张家界市小计",null,null,null,null,12]
[null,"市本级及所辖区小计",null,null,null,null,9]
[null,"市本级","张家界市农机局","水稻机插秧技术推广","科技转化与推广服务","按项目管理的商品和服务支出（发展）",9]
[null,"省直管县小计",null,null,null,null,3]
[null,"慈利县","慈利县农机局","水稻机插秧技术推广","科技转化与推广服务","按项目管理的商品和服务支出（发展）",3]
["益阳市","益阳市小计",null,null,null,null,16]
[null,"市本级及所辖区小计",null,null,null,null,13]
[null,"市本级","益阳市农机局","水稻机插秧技术推广","科技转化与推广服务","按项目管理的商品和服务支出（发展）",9]
[null,"赫山区","赫山区农机局","水稻机插秧技术推广","科技转化与推广服务","按项目管理的商品和服务支出（发展）",4]
[null,"省直管县小计",null,null,null,null,3]
[null,"桃江县","桃江县农机局","水稻机插秧技术推广","科技转化与推广服务","按项目管理的商品和服务支出（发展）",3]
["永州市","永州市小计",null,null,null,null,18]
[null,"市本级及所辖区小计",null,null,null,null,18]
[null,"市本级","永州市农机局","水稻机插秧技术推广","科技转化与推广服务","按项目管理的商品和服务支出（发展）",10]
[null,"零陵区","零陵区农机局","水稻机插秧技术推广","科技转化与推广服务","按项目管理的商品和服务支出（发展）",4]
[null,"冷水滩区","冷水滩区农机局","水稻机插秧技术推广","科技转化与推广服务","按项目管理的商品和服务支出（发展）",4]
["郴州市","郴州市小计",null,null,null,null,13]
[null,"市本级及所辖区小计",null,null,null,null,9]
[null,"市本级","郴州市农机局","水稻机插秧技术推广","科技转化与推广服务","按项目管理的商品和服务支出（发展）",9]
[null,"省直管县小计",null,null,null,null,4]
[null,"桂阳县","桂阳县农机局","水稻机插秧技术推广","科技转化与推广服务","按项目管理的商品和服务支出（发展）",4]
["娄底市","娄底市小计",null,null,null,null,19]
[null,"市本级及所辖区小计",null,null,null,null,13]
[null,"市本级","娄底市农机局","水稻机插秧技术推广","科技转化与推广服务","按项目管理的商品和服务支出（发展）",10]
[null,"娄星区","娄星区农机局","水稻机插秧技术推广","科技转化与推广服务","按项目管理的商品和服务支出（发展）",3]
[null,"省直管县小计",null,null,null,null,6]
[null,"双峰县","双峰县农机局","水稻机插秧技术推广","科技转化与推广服务","按项目管理的商品和服务支出（发展）",3]
[null,"新化县","新化县农机局","水稻机插秧技术推广","科技转化与推广服务","按项目管理的商品和服务支出（发展）",3]
["怀化市","怀化市小计",null,null,null,null,18]
[null,"市本级及所辖区小计",null,null,null,null,9]
[null,"市本级","怀化市农机局","水稻机插秧技术推广","科技转化与推广服务","按项目管理的商品和服务支出（发展）",9]
[null,"省直管县小计",null,null,null,null,9]
[null,"辰溪县","辰溪县农机局","水稻机插秧技术推广","科技转化与推广服务","按项目管理的商品和服务支出（发展）",3]
[null,"溆浦县","溆浦县农机局","水稻机插秧技术推广","科技转化与推广服务","按项目管理的商品和服务支出（发展）",3]
[null,"会同县","会同县农机局","水稻机插秧技术推广","科技转化与推广服务","按项目管理的商品和服务支出（发展）",3]
["湘西土家族苗族自治州","湘西土家族苗族自治州小计",null,null,null,null,41]
[null,"州本级","自治州农机局","水稻机插秧技术推广","科技转化与推广服务","按项目管理的商品和服务支出（发展）",12]
[null,"凤凰县","凤凰县农机局","水稻机插秧技术推广","科技转化与推广服务","按项目管理的商品和服务支出（发展）",3]
[null,"花垣县","花垣县农机局","水稻机插秧技术推广","科技转化与推广服务","按项目管理的商品和服务支出（发展）",3]
[null,"保靖县","保靖县农机局","水稻机插秧技术推广","科技转化与推广服务","按项目管理的商品和服务支出（发展）",3]
[null,"永顺县","永顺县农机局","水稻机插秧技术推广","科技转化与推广服务","按项目管理的商品和服务支出（发展）",16]
[null,"龙山县","龙山县农机局","水稻机插秧技术推广","科技转化与推广服务","按项目管理的商品和服务支出（发展）",4]

{"sheet":"4牌证管理","index":3,"n_rows":53,"n_cols":7,"rows_kept":53,"cut":false,"hidden":false,"merged":[[1,0,1,6],[2,5,2,6]]}
["附件4："]
["湖南省2017年牌证管理经费分配表                                        "]
[null,null,null,null,null,"单位：万元"]
["市州","县市区","项目实施   单位","财政支持          环节与内容","支出功能         分类科目","支出经济分类     科目","金额"]
["全省合计",null,null,null,null,null,220]
["市州小计",null,null,null,null,null,220]
["长沙市","长沙市小计",null,null,null,null,12]
[null,"市本级及所辖区小计",null,null,null,null,12]
[null,"市本级","长沙市监理所","牌证经费","执法监管","按项目管理的商品和服务支出",12]
["株洲市","株洲市小计",null,null,null,null,14]
[null,"市本级及所辖区小计",null,null,null,null,14]
[null,"市本级","株洲市监理所","牌证经费","执法监管","按项目管理的商品和服务支出",14]
["湘潭市","湘潭市小计",null,null,null,null,20]
[null,"市本级及所辖区小计",null,null,null,null,20]
[null,"市本级","湘潭市监理所","牌证经费","执法监管","按项目管理的商品和服务支出",10]
[null,"雨湖区","雨湖区监理所","牌证经费","执法监管","按项目管理的商品和服务支出",10]
["衡阳市","衡阳市小计",null,null,null,null,15]
[null,"市本级及所辖区小计",null,null,null,null,15]
[null,"市本级","衡阳市监理所","牌证经费","执法监管","按项目管理的商品和服务支出",15]
["邵阳市","邵阳市小计",null,null,null,null,14]
[null,"市本级及所辖区小计",null,null,null,null,14]
[null,"市本级","邵阳市监理所","牌证经费","执法监管","按项目管理的商品和服务支出",14]
["岳阳市","岳阳市小计",null,null,null,null,16]
[null,"市本级及所辖区小计",null,null,null,null,16]
[null,"市本级","岳阳市监理所","牌证经费","执法监管","按项目管理的商品和服务支出",16]
["常德市","常德市小计",null,null,null,null,28]
[null,"市本级及所辖区小计",null,null,null,null,18]
[null,"市本级","常德市监理所","牌证经费","执法监管","按项目管理的商品和服务支出",18]
[null,"省直管县小计",null,null,null,null,10]
[null,"石门县","鼎城区监理站","平安农机创建工作","执法监管","按项目管理的商品和服务支出",10]
["张家界","张家界市小计",null,null,null,null,10]
[null,"市本级及所辖区小计",null,null,null,null,10]
[null,"市本级","张家界市监理所","牌证经费","执法监管","按项目管理的商品和服务支出",10]
["益阳市","益阳市小计",null,null,null,null,16]
[null,"市本级及所辖区小计",null,null,null,null,16]
[null,"市本级","益阳市监理所","牌证经费","执法监管","按项目管理的商品和服务支出",16]
["永州市","永州市小计",null,null,null,null,16]
[null,"市本级及所辖区小计",null,null,null,null,16]
[null,"市本级","永州市监理所","牌证经费","执法监管","按项目管理的商品和服务支出",16]
["郴州市","郴州市小计",null,null,null,null,14]
[null,"市本级及所辖区小计",null,null,null,null,14]
[null,"市本级","郴州市监理所","牌证经费","执法监管","按项目管理的商品和服务支出",14]
["娄底市","娄底市小计",null,null,null,null,10]
[null,"市本级及所辖区小计",null,null,null,null,10]
[null,"市本级","娄底市监理所","牌证经费","执法监管","按项目管理的商品和服务支出",10]
["怀化市","怀化市小计",null,null,null,null,19]
[null,"市本级及所辖区小计",null,null,null,null,14]
[null,"市本级","怀化市监理所","牌证经费","执法监管","按项目管理的商品和服务支出",14]
[null,"省直管县小计",null,null,null,null,5]
[null,"辰溪县","辰溪县监理站","平安农机创建工作","执法监管","按项目管理的商品和服务支出",5]
["湘西土家族苗族自治州","湘西土家族苗族自治州小计",null,null,null,null,16]
[null,"州本级","自治州监理所","牌证经费","执法监管","按项目管理的商品和服务支出",11]
[null,"花垣县","花垣县监理站","平安农机创建工作","执法监管","按项目管理的商品和服务支出",5]

{"sheet":"5平安农机","index":4,"n_rows":71,"n_cols":7,"rows_kept":71,"cut":false,"hidden":false,"merged":[[1,0,1,6],[57,1,58,1],[2,5,2,6]]}
["附件5："]
["          2017年平安农机创建和装备建设经费分配表                                        "]
[null,null,null,null,null,"单位：万元"]
["市州","县市区","项目实施单位","财政支持环 节与内容","支出功能分类科目","支出经济         分类科目","金额"]
["全省合计",null,null,null,null,null,360]
["市州小计",null,null,null,null,null,360]
["长沙市","长沙市小计",null,null,null,null,20]
[null,"市本级及所辖区小计",null,null,null,null,10]
[null,"长沙县","长沙县监理站","监理装备建设","执法监管","按项目管理的商品和服务支出",10]
[null,"省直管县小计",null,null,null,null,10]
[null,"宁乡县","宁乡县农机局","平安农机创建工作","执法监管","按项目管理的商品和服务支出",10]
["株洲市","株洲市小计",null,null,null,null,20]
[null,"省直管县小计",null,null,null,null,20]
[null,"茶陵县","茶陵县农机局","平安农机创建工作","执法监管","按项目管理的商品和服务支出",10]
[null,"炎陵县","炎陵县监理所","监理装备建设","执法监管","按项目管理的商品和服务支出",10]
["衡阳市","衡阳市小计",null,null,null,null,40]
[null,"省直管县小计",null,null,null,null,40]
[null,"衡南县","衡南县监理站","监理装备建设","执法监管","按项目管理的商品和服务支出",10]
[null,"衡山县","衡山县农机局","平安农机创建工作","执法监管","按项目管理的商品和服务支出",10]
[null,"衡东县","衡东县农机安全管理大队","监理示范窗口建设","执法监管","按项目管理的商品和服务支出",10]
[null,"耒阳市","耒阳市监理站","监理装备建设","执法监管","按项目管理的商品和服务支出",10]
["邵阳市","邵阳市小计",null,null,null,null,40]
[null,"省直管县小计",null,null,null,null,40]
[null,"新邵县","新邵县监理站","监理示范窗口建设","执法监管","按项目管理的商品和服务支出",10]
[null,"隆回县","隆回县监理站","监理装备建设","执法监管","按项目管理的商品和服务支出",10]
[null,"新宁县","新宁县农机局","平安农机创建工作","执法监管","按项目管理的商品和服务支出",10]
[null,"城步县","城步县监理站","监理装备建设","执法监管","按项目管理的商品和服务支出",10]
["岳阳市","岳阳市小计",null,null,null,null,30]
[null,"市本级及所辖区小计",null,null,null,null,20]
[null,"云溪区","云溪区监理站","监理示范窗口建设","执法监管","按项目管理的商品和服务支出",10]
[null,"屈原区","屈原区监理所","监理装备建设","执法监管","按项目管理的商品和服务支出",10]
[null,"省直管县小计",null,null,null,null,10]
[null,"平江县","平江县监理所","监理装备建设","执法监管","按项目管理的商品和服务支出",10]
["常德市","常德市小计",null,null,null,null,40]
[null,"市本级及所辖区小计",null,null,null,null,10]
[null,"鼎城区","鼎城区农机监理大队","监理装备建设","执法监管","按项目管理的商品和服务支出",10]
[null,"省直管县小计",null,null,null,null,30]
[null,"津市市","津市市监理站","监理示范窗口建设","执法监管","按项目管理的商品和服务支出",10]
[null,"安乡县","安乡县农机化局","平安农机创建工作","执法监管","按项目管理的商品和服务支出",10]
[null,"临澧县","临澧县监理站","监理装备建设","执法监管","按项目管理的商品和服务支出",10]
["张家界","张家界市小计",null,null,null,null,20]
[null,"市本级及所辖区小计",null,null,null,null,20]
[null,"市本级","张家界市农机局","平安农机创建工作","执法监管","按项目管理的商品和服务支出",10]
[null,"永定区","永定区监理站","监理装备建设","执法监管","按项目管理的商品和服务支出",10]
["益阳市","益阳市小计",null,null,null,null,10]
[null,"省直管县小计",null,null,null,null,10]
[null,"安化县","安化县监理所","监理示范窗口建设","执法监管","按项目管理的商品和服务支出",10]
["永州市","永州市小计",null,null,null,null,40]
[null,"市本级及所辖区小计",null,null,null,null,10]
[null,"零陵区","零陵区监理站","监理装备建设","执法监管","按项目管理的商品和服务支出",10]
[null,"省直管县小计",null,null,null,null,30]
[null,"道县","道县监理站","监理装备建设","执法监管","按项目管理的商品和服务支出",10]
[null,"宁远县","宁远县农机局","平安农机创建工作","执法监管","按项目管理的商品和服务支出",10]
[null,"新田县","新田县","监理示范窗口建设","执法监管","按项目管理的商品和服务支出",10]
["郴州市","郴州市小计",null,null,null,null,30]
[null,"省直管县小计",null,null,null,null,30]
[null,"临武县","临武县农机局","平安农机创建工作","执法监管","按项目管理的商品和服务支出",10]
[null,"汝城县","汝城县农机局","平安农机创建工作","执法监管","按项目管理的商品和服务支出",10]
[null,null,"汝城县监理站","监理装备建设","执法监管","按项目管理的商品和服务支出",10]
["娄底市","娄底市小计",null,null,null,null,20]
[null,"省直管县小计",null,null,null,null,20]
[null,"双峰县","双峰县安全监理大队","监理装备建设","执法监管","按项目管理的商品和服务支出",10]
[null,"冷水江市","冷水江市监理所","监理示范窗口建设","执法监管","按项目管理的商品和服务支出",10]
["怀化市","怀化市小计",null,null,null,null,30]
[null,"省直管县小计",null,null,null,null,30]
[null,"新晃县","新晃县监理站","监理装备建设","执法监管","按项目管理的商品和服务支出",10]
[null,"中方县","中方县监理站","监理装备建设","执法监管","按项目管理的商品和服务支出",10]
[null,"靖州县","靖州县监理站","监理示范窗口建设","执法监管","按项目管理的商品和服务支出",10]
["湘西土家族苗族自治州","湘西土家族苗族自治州小计",null,null,null,null,20]
[null,"凤凰县","凤凰县监理站","监理装备建设","执法监管","按项目管理的商品和服务支出",10]
[null,"花垣县","花垣县监理站","监理示范窗口建设","执法监管","按项目管理的商品和服务支出",10]

{"sheet":"6服务能力建设","index":5,"n_rows":84,"n_cols":7,"rows_kept":84,"cut":false,"hidden":false,"merged":[[1,0,1,6],[65,1,66,1],[2,5,2,6]]}
["附件6:"]
["2017年农机技术推广及服务能力建设资金分配表"]
[null,null,null,null,null,"单位：万元"]
["市州","县市区","项目实施单位","财政支持环节    与内容","支出功能     分类科目","支出经济          分类科目","金额"]
["全省合计",null,null,null,null,null,450]
["一、市州合计",null,null,null,null,null,450]
["长沙市","长沙市小计",null,null,null,null,20]
[null,"市本级及所辖区小计",null,null,null,null,10]
[null,"望城区","望城区沃龙农业机械服务有限公司","农机推广服务能力建设","科技转化与推广服务","按项目管理的商品和服务支出",10]
[null,"省直管县小计",null,null,null,null,10]
[null,"浏阳市","浏阳市现代农机技术推广服务中心","农机推广服务能力建设","科技转化与推广服务","按项目管理的商品和服务支出",10]
["株洲市","株洲市小计",null,null,null,null,20]
[null,"省直管县小计",null,null,null,null,20]
[null,"攸县","攸县农机技术推广服务站","农机推广服务能力建设","科技转化与推广服务","按项目管理的商品和服务支出",10]
[null,"醴陵市","醴陵市农机技术推广服务站","农机推广服务能力建设","科技转化与推广服务","按项目管理的商品和服务支出",10]
["湘潭市","湘潭市小计",null,null,null,null,30]
[null,"市本级及所辖区小计",null,null,null,null,10]
[null,"雨湖区","雨湖区俏仙女农机合作社","农机推广服务能力建设","科技转化与推广服务","按项目管理的商品和服务支出",10]
[null,"省直管县小计",null,null,null,null,20]
[null,"湘乡市","湘乡市农机局","农机推广服务能力建设","科技转化与推广服务","按项目管理的商品和服务支出",10]
[null,"韶山市","韶山市农机局","农机推广服务能力建设","科技转化与推广服务","按项目管理的商品和服务支出",10]
["衡阳市","衡阳市小计",null,null,null,null,30]
[null,"省直管县小计",null,null,null,null,30]
[null,"衡阳县","衡阳县农机局","农机推广服务能力建设","科技转化与推广服务","按项目管理的商品和服务支出",10]
[null,"祁东县","祁东县农机化技术推广服务站","农机推广服务能力建设","科技转化与推广服务","按项目管理的商品和服务支出",10]
[null,"常宁市","常宁市农机局","农机推广服务能力建设","科技转化与推广服务","按项目管理的商品和服务支出",10]
["邵阳市","邵阳市小计",null,null,null,null,30]
[null,"省直管县小计",null,null,null,null,30]
[null,"洞口县","洞口县农业机械推广站","农机推广服务能力建设","科技转化与推广服务","按项目管理的商品和服务支出",10]
[null,"邵阳县","邵阳县白仓镇农机站","农机推广服务能力建设","科技转化与推广服务","按项目管理的商品和服务支出",10]
[null,"邵东县","邵东县自平农机有限公司","农机推广服务能力建设","科技转化与推广服务","按项目管理的商品和服务支出",10]
["岳阳市","岳阳市小计",null,null,null,null,30]
[null,"省直管县小计",null,null,null,null,30]
[null,"汨罗市","汨罗市农机局","农机推广服务能力建设","科技转化与推广服务","按项目管理的商品和服务支出",10]
[null,"平江县","平江县伍市镇盘塘村村委会","农机推广服务能力建设","科技转化与推广服务","按项目管理的商品和服务支出",10]
[null,"临湘市","临湘市农机技术推广服务站","农机推广服务能力建设","科技转化与推广服务","按项目管理的商品和服务支出",10]
["常德市","常德市小计",null,null,null,null,40]
[null,"市本级及所辖区小计",null,null,null,null,10]
[null,"鼎城区","鼎城区农机监理大队","农机推广服务能力建设","科技转化与推广服务","按项目管理的商品和服务支出",10]
[null,"省直管县小计",null,null,null,null,30]
[null,"安乡县","安乡县农机化局","农机推广服务能力建设","科技转化与推广服务","按项目管理的商品和服务支出",10]
[null,"桃源县","桃源县农机化局","农机推广服务能力建设","科技转化与推广服务","按项目管理的商品和服务支出",10]
[null,"石门县","石门县农机化局","农机推广服务能力建设","科技转化与推广服务","按项目管理的商品和服务支出",10]
["张家界市","张家界市小计",null,null,null,null,30]
[null,"市本级及所辖区小计",null,null,null,null,10]
[null,"永定区","永定区农机化局","农机推广服务能力建设","科技转化与推广服务","按项目管理的商品和服务支出",10]
[null,"省直管县小计",null,null,null,null,20]
[null,"桑植县","桑植县农业机械技术推广站","农机推广服务能力建设","科技转化与推广服务","按项目管理的商品和服务支出",10]
[null,"慈利县","慈利县农机局","农机推广服务能力建设","科技转化与推广服务","按项目管理的商品和服务支出",10]
["益阳市","益阳市小计",null,null,null,null,30]
[null,"市本级及所辖区小计",null,null,null,null,10]
[null,"赫山区","赫山区农机监理所","农机推广服务能力建设","科技转化与推广服务","按项目管理的商品和服务支出",10]
[null,"省直管县小计",null,null,null,null,20]
[null,"沅江市","沅江市富源拖拉机驾驶员培训学校","农机推广服务能力建设","科技转化与推广服务","按项目管理的商品和服务支出",10]
[null,"南县","南县伟业机械制造有限公司","农机推广服务能力建设","科技转化与推广服务","按项目管理的商品和服务支出",10]
["永州市","永州市小计",null,null,null,null,30]
[null,"省直管县小计",null,null,null,null,30]
[null,"双牌县","双牌县农机技术推广站","农机推广服务能力建设","科技转化与推广服务","按项目管理的商品和服务支出",10]
[null,"祁阳县","祁阳县农机推广站","农机推广服务能力建设","科技转化与推广服务","按项目管理的商品和服务支出",10]
[null,"蓝山县","蓝山县农业技术推广站","农机推广服务能力建设","科技转化与推广服务","按项目管理的商品和服务支出",10]
["郴州市","郴州市小计",null,null,null,null,40]
[null,"市本级及所辖区小计",null,null,null,null,10]
[null,"苏仙区","苏仙区农机局推广站","农机推广服务能力建设","科技转化与推广服务","按项目管理的商品和服务支出",10]
[null,"省直管县小计",null,null,null,null,30]
[null,"桂东县","桂东县大塘镇农机服务站","农机推广服务能力建设","科技转化与推广服务","按项目管理的商品和服务支出",10]
[null,"宜章县","宜章县农机技术推广站","农机推广服务能力建设","科技转化与推广服务","按项目管理的商品和服务支出",10]
[null,null,"宜章县赤石东阳农机专业合作社","农机推广服务能力建设","科技转化与推广服务","按项目管理的商品和服务支出",10]
["娄底市","娄底市小计",null,null,null,null,30]
[null,"省直管县小计",null,null,null,null,30]
[null,"涟源市","涟源市农机局","农机推广服务能力建设","科技转化与推广服务","按项目管理的商品和服务支出",10]
[null,"双峰县","双峰县农机技术推广培训中心","农机推广服务能力建设","科技转化与推广服务","按项目管理的商品和服务支出",10]
[null,"新化县","新化县农机推广站","农机推广服务能力建设","科技转化与推广服务","按项目管理的商品和服务支出",10]
["怀化市","怀化市小计",null,null,null,null,30]
[null,"市本级及所辖区小计",null,null,null,null,10]
[null,"鹤城区","鹤城区农机化服务中心","农机推广服务能力建设","科技转化与推广服务","按项目管理的商品和服务支出",10]
[null,"省直管县小计",null,null,null,null,20]
[null,"辰溪县","辰溪县农机局","农机推广服务能力建设","科技转化与推广服务","按项目管理的商品和服务支出",10]
[null,"溆浦县","溆浦县农机安全监理站","农机推广服务能力建设","科技转化与推广服务","按项目管理的商品和服务支出",10]
["湘西土家族苗族自治州","湘西土家族苗族自治州小计",null,null,null,null,60]
[null,"吉首市","吉首市农机技术推广站","农机推广服务能力建设","科技转化与推广服务","按项目管理的商品和服务支出",10]
[null,"凤凰县","凤凰县农机技术推广站","农机推广服务能力建设","科技转化与推广服务","按项目管理的商品和服务支出",10]
[null,"保靖县","保靖县农机技术推广站","农机推广服务能力建设","科技转化与推广服务","按项目管理的商品和服务支出",10]
[null,"古丈县","古丈县农机技术推广站","农机推广服务能力建设","科技转化与推广服务","按项目管理的商品和服务支出",10]
[null,"永顺县","永顺县农机化技术推广站","农机推广服务能力建设","科技转化与推广服务","按项目管理的商品和服务支出",20]

{"sheet":"7、油菜","index":6,"n_rows":66,"n_cols":7,"rows_kept":66,"cut":false,"hidden":false,"merged":[[1,0,1,6],[2,0,2,6]]}
["附件7："]
["2017年油菜机械化推广经费分配表"]
["单位：万元"]
["市州","县市区","项目实施单位","财政支持环节与内容","支出功能分类科目","支出经济分类科目","金额"]
["全省合计",null,null,null,null,null,280]
["一、市州小计",null,null,null,null,null,280]
["长沙市","长沙市小计",null,null,null,null,10]
[null,"省直管县小计",null,null,null,null,10]
[null,"宁乡县","宁乡县农机技术推广站、宁乡县武华农机服务专业合作社","油菜全程机械化示范推广","科技转化与推广服务","按项目管理的商品和服务支出",10]
["株洲市","株洲市小计",null,null,null,null,20]
[null,"省直管县小计",null,null,null,null,20]
[null,"株洲县","株洲县行汇现代化农机服务专业合作社","油菜全程机械化示范推广","科技转化与推广服务","按项目管理的商品和服务支出",10]
[null,"茶陵县","茶陵县农机推广服务中心","油菜全程机械化示范推广","科技转化与推广服务","按项目管理的商品和服务支出",10]
["湘潭市","湘潭市小计",null,null,null,null,10]
[null,"省直管县小计",null,null,null,null,10]
[null,"湘乡市","湘乡市农机局","油菜全程机械化示范推广","科技转化与推广服务","按项目管理的商品和服务支出",10]
["衡阳市","衡阳市小计",null,null,null,null,30]
[null,"市本级及所辖区小计",null,null,null,null,10]
[null,"南岳区","南岳区农业局","油菜全程机械化示范推广","科技转化与推广服务","按项目管理的商品和服务支出",10]
[null,"省直管县小计",null,null,null,null,20]
[null,"祁东县","祁东县农机化技术推广服务站","油菜全程机械化示范推广","科技转化与推广服务","按项目管理的商品和服务支出",10]
[null,"常宁市","常宁市农机局","油菜全程机械化示范推广","科技转化与推广服务","按项目管理的商品和服务支出",10]
["邵阳市","邵阳市小计",null,null,null,null,20]
[null,"省直管县小计",null,null,null,null,20]
[null,"隆回县","隆回县农业机械技术推广中心","油菜全程机械化示范推广","科技转化与推广服务","按项目管理的商品和服务支出",10]
[null,"绥宁县","绥宁县农业机械技术推广站","油菜全程机械化示范推广","科技转化与推广服务","按项目管理的商品和服务支出",10]
["岳阳市","岳阳市小计",null,null,null,null,30]
[null,"市本级及所辖区小计",null,null,null,null,10]
[null,"君山区","君山区农机监理所","油菜全程机械化示范推广","科技转化与推广服务","按项目管理的商品和服务支出",10]
[null,"省直管县小计",null,null,null,null,20]
[null,"湘阴县","湘阴县农业机械技术推广站","油菜全程机械化示范推广","科技转化与推广服务","按项目管理的商品和服务支出",10]
[null,"岳阳县","岳阳县农机局","油菜全程机械化示范推广","科技转化与推广服务","按项目管理的商品和服务支出",10]
["常德市","常德市小计",null,null,null,null,30]
[null,"市本级及所辖区小计",null,null,null,null,10]
[null,"西湖区","西湖区农机化局","油菜全程机械化示范推广","科技转化与推广服务","按项目管理的商品和服务支出",10]
[null,"省直管县小计",null,null,null,null,20]
[null,"汉寿县","汉寿县农机技术推广中心","油菜全程机械化示范推广","科技转化与推广服务","按项目管理的商品和服务支出",10]
[null,"澧县","澧县农机化技术推广站","油菜全程机械化示范推广","科技转化与推广服务","按项目管理的商品和服务支出",10]
["张家界市","张家界市小计",null,null,null,null,10]
[null,"省直管县小计",null,null,null,null,10]
[null,"桑植县","桑植县农业机械技术推广站","油菜全程机械化示范推广","科技转化与推广服务","按项目管理的商品和服务支出",10]
["益阳市","益阳市小计",null,null,null,null,20]
[null,"省直管县小计",null,null,null,null,20]
[null,"南县","南县农机化技术推广服务站","油菜全程机械化示范推广","科技转化与推广服务","按项目管理的商品和服务支出",10]
[null,"桃江县","桃江县农业机械技术推广服务站","油菜全程机械化示范推广","科技转化与推广服务","按项目管理的商品和服务支出",10]
["永州市","永州市小计",null,null,null,null,20]
[null,"市本级及所辖区小计",null,null,null,null,10]
[null,"冷水滩区","冷水滩区农机技术推广中心","油菜全程机械化示范推广","科技转化与推广服务","按项目管理的商品和服务支出",10]
[null,"省直管县小计",null,null,null,null,10]
[null,"江华县","江华瑶族自治县农机化技术推广服务站","油菜全程机械化示范推广","科技转化与推广服务","按项目管理的商品和服务支出",10]
["郴州市","郴州市小计",null,null,null,null,20]
[null,"省直管县小计",null,null,null,null,20]
[null,"桂阳县","桂阳县农机科教中心","油菜全程机械化示范推广","科技转化与推广服务","按项目管理的商品和服务支出",10]
[null,"永兴县","永兴县农机推广站","油菜全程机械化示范推广","科技转化与推广服务","按项目管理的商品和服务支出",10]
["娄底市","娄底市小计",null,null,null,null,20]
[null,"市本级及所辖区小计",null,null,null,null,10]
[null,"娄星区","娄星区农机局","油菜全程机械化示范推广","科技转化与推广服务","按项目管理的商品和服务支出",10]
[null,"省直管县小计",null,null,null,null,10]
[null,"新化县","新化县农机推广站","油菜全程机械化示范推广","科技转化与推广服务","按项目管理的商品和服务支出",10]
["怀化市","怀化市小计",null,null,null,null,20]
[null,"省直管县小计",null,null,null,null,20]
[null,"沅陵县","沅陵县农机推广站","油菜全程机械化示范推广","科技转化与推广服务","按项目管理的商品和服务支出",10]
[null,"洪江市","洪江市农机推广站","油菜全程机械化示范推广","科技转化与推广服务","按项目管理的商品和服务支出",10]
["湘西土家族苗族自治州","湘西土家族苗族自治州小计",null,null,null,null,20]
[null,"永顺县","永顺县农机化技术推广站","油菜全程机械化示范推广","科技转化与推广服务","按项目管理的商品和服务支出",10]
[null,"龙山县","龙山县农机技术推广服务站","油菜全程机械化示范推广","科技转化与推广服务","按项目管理的商品和服务支出",10]

{"sheet":"8秸秆还田","index":7,"n_rows":27,"n_cols":7,"rows_kept":27,"cut":false,"hidden":false,"merged":[[1,0,1,6],[2,5,2,6]]}
["附件8："]
["2017年秸秆机械化还田示范推广经费分配表"]
[null,null,null,null,null,"单位：万元"]
["市州","县市区","项目实施单位","财政支持环节与内容","支出功能分类科目","支出经济分类科目","金额"]
["全省合计",null,null,null,null,null,80]
["一、市州小计",null,null,null,null,null,80]
["长沙市","长沙市小计",null,null,null,null,10]
[null,"省直管县小计",null,null,null,null,10]
[null,"宁乡县","宁乡县农机技术推广站、宁乡县粮人农机服务专业合作社、宁乡县顺通农机服务专业合作社","秸秆机械化还田示范推广","科技转化与推广服务","按项目管理的商品和服务支出",10]
["湘潭市","湘潭市小计",null,null,null,null,10]
[null,"市本级及所辖区小计",null,null,null,null,10]
[null,"市本级","湘潭市农业机械化技术推广站","秸秆机械化还田示范推广","科技转化与推广服务","按项目管理的商品和服务支出",10]
["衡阳市","衡阳市小计",null,null,null,null,10]
[null,"省直管县小计",null,null,null,null,10]
[null,"衡南县","衡南县农业机械化推广站","秸秆机械化还田示范推广","科技转化与推广服务","按项目管理的商品和服务支出",10]
["邵阳市","邵阳市小计",null,null,null,null,10]
[null,"省直管县小计",null,null,null,null,10]
[null,"武冈市","武冈市农业机械化技术推广中心","秸秆机械化还田示范推广","科技转化与推广服务","按项目管理的商品和服务支出",10]
["张家界市","张家界市小计",null,null,null,null,10]
[null,"省直管县小计",null,null,null,null,10]
[null,"慈利县","慈利县农机推广站","秸秆机械化还田示范推广","科技转化与推广服务","按项目管理的商品和服务支出",10]
["益阳市","益阳市小计",null,null,null,null,10]
[null,"市本级及所辖区小计",null,null,null,null,10]
[null,"大通湖区","大通湖区农业技术推广中心","秸秆机械化还田示范推广","科技转化与推广服务","按项目管理的商品和服务支出",10]
["娄底市","娄底市小计",null,null,null,null,20]
[null,"省直管县小计",null,null,null,null,20]
[null,"涟源市","涟源市农机技术推广中心","秸秆机械化还田示范推广","科技转化与推广服务","按项目管理的商品和服务支出",20]

{"sheet":"9、经济作物","index":8,"n_rows":20,"n_cols":7,"rows_kept":20,"cut":false,"hidden":false,"merged":[[1,0,1,6],[2,5,2,6]]}
["附件9："]
["2017年经济作物机械化示范经费分配表"]
[null,null,null,null,null,"单位：万元"]
["市州","县市区","项目实施单位","财政支持环节与内容","支出功能分类科目","支出经济分类科目","金额"]
["全省合计",null,null,null,null,null,60]
["一、市州小计",null,null,null,null,null,60]
["长沙市","长沙市小计",null,null,null,null,10]
[null,"市本级及所辖区小计",null,null,null,null,10]
[null,"长沙县","长沙县农业综合技术推广服务中心","经济作物机械化示范推广","科技转化与推广服务","按项目管理的商品和服务支出",10]
["湘潭市","湘潭市小计",null,null,null,null,15]
[null,"省直管县小计",null,null,null,null,15]
[null,"湘潭县","湘潭县农机技术推广站","经济作物机械化示范推广","科技转化与推广服务","按项目管理的商品和服务支出",15]
["郴州市","郴州市小计",null,null,null,null,15]
[null,"省直管县小计",null,null,null,null,15]
[null,"临武县","临武县天缘农业科技有限公司","经济作物机械化示范推广","科技转化与推广服务","按项目管理的商品和服务支出",15]
["怀化市","怀化市小计",null,null,null,null,10]
[null,"省直管县小计",null,null,null,null,10]
[null,"芷江县","芷江侗族自治县农业机械技术推广站","经济作物机械化示范推广","科技转化与推广服务","按项目管理的商品和服务支出",10]
["湘西土家族苗族自治州","湘西土家族苗族自治州小计",null,null,null,null,10]
[null,"泸溪县","泸溪县农机技术推广站","经济作物机械化示范推广","科技转化与推广服务","按项目管理的商品和服务支出",10]

{"sheet":"10科技创新","index":9,"n_rows":57,"n_cols":7,"rows_kept":57,"cut":false,"hidden":false,"merged":[[1,0,1,6],[2,5,2,6]]}
["附件10："]
["2017年农机科技创新与教育培训资金分配表"]
[null,null,null,null,null,"单位：万元"]
["市州","县市区","项目实施单位","财政支持环节与内容","支出功能分类科目","支出经济分类科目","金额"]
["全省合计",null,null,null,null,null,200]
["一、市州小计",null,null,null,null,null,200]
["长沙市","长沙市小计",null,null,null,null,20]
[null,"市本级及所辖区小计",null,null,null,null,10]
[null,"市本级","长沙市农机研究所","科技创新与教育培训","科技转化与推广服务","按项目管理的商品和服务支出",10]
[null,"省直管县小计",null,null,null,null,10]
[null,"浏阳市","浏阳市农业机械化技术培训中心","科技创新与教育培训","科技转化与推广服务","按项目管理的商品和服务支出",10]
["株洲市","株洲市小计",null,null,null,null,10]
[null,"市本级及所辖区小计",null,null,null,null,10]
[null,"天元区","株洲市现代农机技术培训服务中心","科技创新与教育培训","科技转化与推广服务","按项目管理的商品和服务支出",10]
["湘潭市","湘潭市小计",null,null,null,null,20]
[null,"市本级及所辖区小计",null,null,null,null,10]
[null,"市本级","湘潭市农业机械化技术推广站","科技创新与教育培训","科技转化与推广服务","按项目管理的商品和服务支出",10]
[null,"省直管县小计",null,null,null,null,10]
[null,"湘潭县","湘潭县农机管理局","科技创新与教育培训","科技转化与推广服务","按项目管理的商品和服务支出",10]
["衡阳市","衡阳市小计",null,null,null,null,10]
[null,"省直管县小计",null,null,null,null,10]
[null,"衡阳县","衡阳县西渡镇惠农农机培训中心","科技创新与教育培训","科技转化与推广服务","按项目管理的商品和服务支出",10]
["邵阳市","邵阳市小计",null,null,null,null,10]
[null,"省直管县小计",null,null,null,null,10]
[null,"邵东县","邵东县顺平拖拉机驾驶培训学校","科技创新与教育培训","科技转化与推广服务","按项目管理的商品和服务支出",10]
["岳阳市","岳阳市小计",null,null,null,null,20]
[null,"市本级及所辖区小计",null,null,null,null,10]
[null,"市本级","岳阳市农业机械化研究所","科技创新与教育培训","科技转化与推广服务","按项目管理的商品和服务支出",10]
[null,"省直管县小计",null,null,null,null,10]
[null,"华容县","华容县机电成人中等专业学校","科技创新与教育培训","科技转化与推广服务","按项目管理的商品和服务支出",10]
["常德市","常德市小计",null,null,null,null,20]
[null,"市本级及所辖区小计",null,null,null,null,10]
[null,"市本级","常德市农机推广站","科技创新与教育培训","科技转化与推广服务","按项目管理的商品和服务支出",10]
[null,"省直管县小计",null,null,null,null,10]
[null,"桃源县","桃源县农业机械化学校","科技创新与教育培训","科技转化与推广服务","按项目管理的商品和服务支出",10]
["张家界市","张家界市小计",null,null,null,null,10]
[null,"市本级及所辖区小计",null,null,null,null,10]
[null,"永定区","永定区农机技术推广服务站","科技创新与教育培训","科技转化与推广服务","按项目管理的商品和服务支出",10]
["益阳市","益阳市小计",null,null,null,null,10]
[null,"市本级及所辖区小计",null,null,null,null,10]
[null,"资阳区","资阳区农业机械化学校","科技创新与教育培训","科技转化与推广服务","按项目管理的商品和服务支出",10]
["永州市","永州市小计",null,null,null,null,10]
[null,"省直管县小计",null,null,null,null,10]
[null,"东安县","东安县农机化学校","科技创新与教育培训","科技转化与推广服务","按项目管理的商品和服务支出",10]
["郴州市","郴州市小计",null,null,null,null,10]
[null,"省直管县小计",null,null,null,null,10]
[null,"安仁县","安仁县农机局","科技创新与技术培训","科技转化与推广服务","按项目管理的商品和服务支出",10]
["娄底市","娄底市小计",null,null,null,null,20]
[null,"市本级及所辖区小计",null,null,null,null,20]
[null,"市本级","娄底市农业机械化研究所","科技创新与教育培训","科技转化与推广服务","按项目管理的商品和服务支出",10]
[null,"娄星区","娄星区农业机械化学校","科技创新与教育培训","科技转化与推广服务","按项目管理的商品和服务支出",10]
["怀化市","怀化市小计",null,null,null,null,10]
[null,"省直管县小计",null,null,null,null,10]
[null,"麻阳县","麻阳苗族自治县拖拉机驾驶培训学校","科技创新与教育培训","科技转化与推广服务","按项目管理的商品和服务支出",10]
["湘西土家族苗族自治州","湘西土家族苗族自治州小计",null,null,null,null,20]
[null,"州本级","湘西州农机研究所","科技创新与教育培训","科技转化与推广服务","按项目管理的商品和服务支出",10]
[null,"龙山县","龙山县拖拉机驾驶培训学校","科技创新与教育培训","科技转化与推广服务","按项目管理的商品和服务支出",10]